bitfinex-derivatives/quotes_ETHF0:USTF0_20250810
["timestamp","ask_amount","ask_price","bid_price","bid_amount"]
[1754841477845,1.5462,4220.1,4220.0,1.5598]
[1754841478746,1.2818,4220.1,4220.0,1.5598]
[1754841478944,0.47383,4220.6,4220.3,1.5598]
[1754841479145,1.31763,4220.6,4220.5,1.5598]
[1754841479335,1.75563,4220.6,4220.5,1.5598]
[1754841479539,0.2579,4221.0,4220.8,0.4738]
[1754841479740,0.8965,4221.0,4220.9,1.5598]
[1754841480034,1.37028,4221.0,4220.9,1.5598]
[1754841480241,1.75558,4221.0,4220.9,1.5598]
[1754841480743,2.50978579,4221.0,4220.9,1.5598]
[1754841482245,2.77418579,4221.0,4220.9,0.4438]
[1754841482447,2.77418579,4221.0,4220.9,0.2682]
[1754841484244,1.5462,4220.7,4220.6,1.35641]
[1754841484446,1.5462,4220.7,4220.6,1.61311]
[1754841484644,1.5462,4220.7,4220.6,2.03361]
[1754841484844,1.0239,4220.7,4220.6,2.03361]
[1754841485052,1.27650579,4221.0,4220.9,0.82999]
[1754841485053,1.13950579,4221.0,4220.9,0.82999]
[1754841485242,2.03600579,4221.0,4220.9,2.03359]
[1754841485446,2.03600579,4221.0,4220.9,1.5598]
[1754841485750,2.31090579,4221.0,4220.9,1.5598]
[1754841486142,2.31090579,4221.0,4220.9,0.8826]
[1754841486346,1.77810579,4221.0,4220.9,1.5607]
[1754841486749,1.0239,4221.0,4220.9,1.5607]
[1754841487254,1.2878,4221.0,4220.9,1.5607]
[1754841487754,2.04200579,4221.0,4220.9,1.5607]
[1754841488657,2.31690579,4221.0,4220.9,1.1525]
[1754841488860,2.31690579,4221.0,4220.9,1.5607]
[1754841491656,2.04200579,4221.0,4220.9,1.5607]
[1754841495761,0.75420579,4221.0,4220.9,1.5607]
[1754841496155,1.01990579,4221.0,4220.9,1.5607]
[1754841496358,2.02660579,4221.0,4220.9,1.5607]
[1754841496553,0.2657,4221.0,4220.9,1.5607]
[1754841496762,0.6567,4221.3,4221.2,1.5871]
[1754841497965,0.6567,4221.3,4221.2,2.06086]
[1754841499268,0.8342,4221.3,4221.2,2.06086]
[1754841500166,1.2724,4221.3,4221.2,1.5871]
[1754841500669,1.5473,4221.3,4221.2,1.5871]
[1754841501063,1.2724,4221.3,4221.2,1.5871]
[1754841502066,23.0844,4221.3,4221.2,1.5871]
[1754841502474,23.3593,4221.3,4221.2,0.4447]
[1754841504066,23.3593,4221.3,4221.2,0.7254]
[1754841506274,23.3593,4221.3,4221.2,0.4447]
[1754841506670,23.3593,4221.3,4221.2,0.7254]
[1754841506970,23.3593,4221.3,4221.2,0.909]
[1754841507470,23.3593,4221.3,4221.2,1.3172]
[1754841508961,0.4737,4221.8,4221.6,0.4737]
[1754841509164,0.57625725,4222.0,4221.9,1.3197]
[1754841509368,0.8342,4222.0,4221.9,1.5871]
[1754841509572,23.0784,4222.0,4221.9,1.5871]
[1754841509766,23.55207,4222.0,4221.9,1.5871]
[1754841509968,22.0717,4222.0,4221.9,1.5871]
[1754841510168,0.2657,4222.0,4221.9,1.5871]
[1754841510480,0.8342,4222.0,4221.9,1.5871]
[1754841511373,0.8342,4222.0,4221.3,1.18437]
[1754841511374,0.75420579,4222.1,4222.0,2.06077]
[1754841511672,2.50026579,4222.1,4222.0,1.5871]
[1754841512062,0.4737,4221.7,4221.5,0.47371]
[1754841512266,0.4737,4221.7,4221.0,0.2807]
[1754841512267,1.5473,4221.5,4221.4,1.10202]
[1754841512468,0.75420579,4221.6,4221.5,1.5871]
[1754841512469,1.41090579,4221.6,4221.5,1.5871]
[1754841512668,1.58840579,4221.6,4221.5,1.5871]
[1754841512862,2.02660579,4221.6,4221.5,1.5871]
[1754841513473,21.804,4221.7,4221.6,2.06081]
[1754841513673,21.803,4221.9,4221.8,2.06078]
[1754841513873,1.22787579,4222.0,4221.8,2.06078]
[1754841514078,1.14520579,4222.3,4222.1,1.10446]
[1754841514374,22.27564,4222.3,4222.1,1.10446]
[1754841514877,23.10984,4222.3,4222.2,1.5871]
[1754841515175,22.6362,4222.3,4222.2,1.5871]
[1754841515369,21.802,4222.3,4222.2,1.5871]
[1754841515572,21.802,4222.3,4221.6,1.18426]
[1754841515573,2.03680579,4222.7,4222.6,1.5614]
[1754841515769,23.83680579,4222.7,4222.6,1.5614]
[1754841517476,24.11210579,4222.7,4222.6,1.5614]
[1754841517870,24.11210579,4222.7,4222.2,0.47364]
[1754841518071,1.2826,4222.2,4222.1,1.5614]
[1754841518271,22.80710579,4222.2,4222.1,1.5614]
[1754841519171,23.21290579,4222.2,4222.1,1.5614]
[1754841519373,22.80710579,4222.2,4222.1,1.5614]
[1754841519770,23.83380579,4222.2,4222.1,1.5614]
[1754841519970,1.5579,4221.9,4221.5,0.4143]
[1754841520171,23.73534579,4222.2,4220.7,1.18451]
[1754841520172,0.4281,4221.4,4221.3,0.6133]
[1754841520376,23.3539,4221.4,4221.3,1.1471]
[1754841520583,23.3539,4221.4,4221.3,1.5614]
[1754841521270,23.3539,4221.4,4220.2,1.18465]
[1754841521271,0.6831,4221.3,4220.7,0.47381]
[1754841521578,2.03680579,4220.8,4220.7,2.03521]
[1754841521878,1.75950579,4220.8,4220.7,2.03521]
[1754841522279,1.18150579,4220.8,4220.7,2.03521]
[1754841522477,1.01010579,4220.8,4220.7,2.03521]
[1754841522873,0.1468236,4220.9,4220.8,0.9393]
[1754841523083,0.1468236,4220.9,4220.8,1.5614]
[1754841523778,0.4027236,4220.9,4220.8,1.5614]
[1754841524077,0.8085236,4220.9,4220.8,1.5614]
[1754841525386,0.1468236,4220.9,4220.8,1.5614]
[1754841525683,0.1468236,4220.9,4220.7,0.47381]
[1754841525684,22.0499,4221.0,4220.9,2.03519]
[1754841525884,22.19676138,4221.0,4220.9,2.03519]
[1754841526783,0.40276138,4221.0,4220.9,2.03519]
[1754841526983,0.2559,4221.0,4220.9,2.03519]
[1754841527484,0.40276138,4221.2,4221.1,1.09587]
[1754841527684,0.40276138,4221.2,4221.1,1.5614]
[1754841527881,1.42946138,4221.2,4221.1,1.5614]
[1754841529591,0.14686138,4221.2,4221.1,1.5614]
[1754841529884,0.14686138,4221.3,4221.2,2.03516]
[1754841530090,0.14686138,4221.6,4221.5,2.03512]
[1754841530879,1.42946138,4221.6,4221.5,2.03512]
[1754841531681,1.42946138,4221.6,4221.5,1.5614]
[1754841531883,0.47376,4221.2,4221.1,0.2686]
[1754841532090,1.35370579,4221.2,4221.1,2.03516]
[1754841532282,1.50056717,4221.2,4221.1,2.03516]
[1754841532480,0.40276138,4221.2,4221.1,2.03516]
[1754841533275,1.42946138,4221.2,4221.1,2.03516]
[1754841533481,1.42946138,4221.2,4221.1,0.2686]
[1754841533482,1.70476138,4221.2,4221.1,0.2686]
[1754841533680,0.8748,4220.8,4220.7,1.09591]
[1754841533881,0.5995,4220.8,4220.7,2.03521]
[1754841534486,1.0053,4220.8,4220.7,2.03521]
[1754841535384,1.2826,4220.8,4220.7,2.03521]
[1754841536281,1.5579,4220.8,4220.7,2.03521]
[1754841536482,1.5579,4220.8,4220.7,1.5614]
[1754841537784,0.62064787,4220.9,4219.9,1.18476]
[1754841537785,0.5995,4220.6,4220.5,0.74243]
[1754841538086,1.5579,4220.6,4220.5,1.17293]
[1754841538292,1.5579,4220.6,4220.5,1.34353]
[1754841538581,1.5579,4220.6,4220.5,0.4427]
[1754841538789,1.5579,4220.3,4220.2,1.07496]
[1754841538990,2.31210579,4220.3,4220.2,0.6011]
[1754841539286,2.31210579,4220.3,4220.1,0.47387]
[1754841539287,1.5579,4220.1,4220.0,1.07498]
[1754841539481,1.5579,4220.1,4220.0,2.03528]
[1754841540291,1.2826,4220.1,4220.0,2.03528]
[1754841540586,1.2826,4220.1,4219.4,1.18489]
[1754841540587,1.0053,4220.4,4220.3,2.03526]
[1754841540778,1.30695,4220.4,4220.3,1.5614]
[1754841540981,1.75645,4220.4,4220.3,1.5614]
[1754841541181,2.03175,4220.4,4220.3,1.284]
[1754841541378,2.03175,4220.4,4220.3,0.6133]
[1754841541582,1.5579,4220.1,4220.0,1.5614]
[1754841541788,1.5579,4220.1,4220.0,1.1471]
[1754841542987,1.2826,4220.1,4220.0,2.03529]
[1754841543593,1.2826,4220.1,4220.0,1.5614]
[1754841543793,1.5579,4220.1,4220.0,1.1471]
[1754841544194,1.5579,4220.1,4220.0,0.2686]
[1754841544387,2.03181,4219.8,4219.7,1.1471]
[1754841544587,1.5579,4219.8,4219.7,1.5614]
[1754841545290,0.5995,4219.6,4219.5,0.4305]
[1754841545497,2.28180579,4219.6,4219.5,0.6961]
[1754841545689,2.28180579,4219.6,4219.5,0.8699]
[1754841546288,2.28180579,4219.6,4219.5,1.553]
[1754841546486,0.47392,4219.7,4219.5,1.553]
[1754841546795,23.0674,4220.2,4220.1,1.5544]
[1754841546983,23.48314463,4220.2,4220.1,1.5544]
[1754841547189,23.48314463,4220.2,4220.1,1.1513]
[1754841549598,23.48314463,4220.2,4220.1,0.47388]
[1754841549796,2.02228,4220.1,4220.0,0.2656]
[1754841549989,2.16902463,4220.1,4220.0,0.5249]
[1754841550194,2.16902463,4220.1,4220.0,0.6975]
[1754841550903,2.16888173,4220.1,4220.0,0.8713]
[1754841551399,2.16888777,4220.1,4220.0,0.8713]
[1754841551895,2.16888777,4220.1,4220.0,1.5544]
[1754841552703,2.02228,4220.1,4220.0,1.5544]
[1754841554205,2.02228,4220.1,4219.9,0.47389]
[1754841554206,2.07888954,4222.1,4220.1,0.2656]
[1754841554399,0.75420579,4220.9,4220.7,0.6687]
[1754841554600,1.22799579,4220.9,4220.8,1.5544]
[1754841554799,23.91219579,4220.9,4220.8,1.5544]
[1754841554999,23.91219579,4220.9,4219.8,0.1738]
[1754841555000,0.47391,4219.9,4219.8,0.1738]
[1754841555201,2.77651579,4219.9,4219.8,1.5544]
[1754841555905,2.02231,4219.9,4219.8,1.5544]
[1754841556207,0.6203,4219.3,4219.2,0.4382]
[1754841556407,24.56457579,4219.3,4219.2,0.2656]
[1754841557106,24.56457579,4219.3,4219.2,0.8713]
[1754841557398,24.56457579,4219.3,4219.2,1.1513]
[1754841557899,24.56457579,4219.3,4219.0,0.47399]
[1754841557900,1.5484,4219.0,4218.9,1.0088]
[1754841558104,1.5484,4219.0,4218.9,0.6057]
[1754841558300,1.5484,4219.0,4218.9,0.8713]
[1754841558502,2.02244,4218.7,4218.6,1.2888]
[1754841558708,2.77664579,4218.7,4218.6,1.2888]
[1754841559202,2.77664579,4218.7,4218.6,1.1513]
[1754841559408,1.0943,4219.1,4219.0,0.6264]
[1754841559604,23.0674,4219.1,4219.0,1.5544]
[1754841559800,23.54139,4219.1,4219.0,1.5544]
[1754841560600,23.81039,4219.1,4219.0,1.1513]
[1754841561206,23.81039,4219.1,4219.0,1.5544]
[1754841561405,23.54139,4219.1,4219.0,1.5544]
[1754841561803,22.7925,4219.1,4219.0,2.0284]
[1754841562011,22.7925,4219.1,4219.0,1.5544]
[1754841562204,0.47398,4219.2,4219.0,1.5544]
[1754841562507,22.0525,4219.6,4219.5,2.02835]
[1754841562708,0.6467,4219.6,4219.5,2.02835]
[1754841562901,22.4367,4219.6,4219.5,2.02835]
[1754841564109,22.6134,4219.6,4219.5,2.02835]
[1754841564408,22.7935,4219.6,4219.5,2.02835]
[1754841564799,22.6134,4219.6,4219.5,2.02835]
[1754841565000,0.6467,4219.8,4219.7,1.62522]
[1754841565310,23.0694,4219.8,4219.7,1.5544]
[1754841567313,23.0694,4219.8,4219.7,1.2951]
[1754841567512,34.60886,4220.3,4220.1,0.47388]
[1754841567707,34.4109,4220.3,4220.2,1.5544]
[1754841567905,56.2009,4220.3,4220.2,1.5544]
[1754841568106,56.5841,4220.3,4220.2,2.02827]
[1754841568601,56.3082,4220.3,4220.2,2.02827]
[1754841568807,21.79,4220.3,4220.2,2.02827]
[1754841569100,0.2635,4220.3,4220.2,2.02827]
[1754841569308,0.8962,4220.6,4220.5,1.5544]
[1754841569612,22.2292,4220.6,4220.5,1.5544]
[1754841570012,22.6124,4220.6,4220.5,1.5544]
[1754841573214,22.0525,4220.6,4220.5,1.5544]
[1754841573414,35.32432,4221.5,4221.0,1.10017]
[1754841573415,0.6467,4221.1,4221.0,1.10017]
[1754841573609,22.4347,4221.1,4221.0,2.02817]
[1754841574116,22.7915,4221.1,4221.0,2.02817]
[1754841574304,23.0674,4221.1,4221.0,2.02817]
[1754841574505,0.8234,4221.4,4221.3,1.10014]
[1754841574709,23.0674,4221.4,4221.3,0.6264]
[1754841575204,23.0674,4221.4,4221.3,1.5544]
[1754841579613,23.0634,4221.4,4221.3,1.5544]
[1754841581820,23.0624,4221.4,4221.3,1.5544]
[1754841582021,0.4738,4220.8,4220.6,0.47381]
[1754841582322,23.83730579,4220.7,4220.6,2.04881]
[1754841582926,1.01710579,4221.1,4221.0,1.575]
[1754841583224,23.83630579,4221.1,4221.0,1.575]
[1754841583423,23.98513442,4221.1,4221.0,1.575]
[1754841583722,2.67690442,4221.1,4221.0,1.575]
[1754841583919,24.31007579,4221.1,4221.0,1.575]
[1754841584114,24.71280442,4221.1,4221.0,1.179]
[1754841584319,1.7739,4220.8,4220.7,1.179]
[1754841584516,0.619,4220.4,4220.3,1.09795]
[1754841584715,23.0821,4220.4,4220.3,1.09795]
[1754841585116,23.0821,4220.4,4220.3,2.04885]
[1754841586617,22.8007,4220.4,4220.3,2.04885]
[1754841589522,22.9496128,4220.4,4220.3,2.04885]
[1754841590323,22.9496128,4220.4,4220.3,1.575]
[1754841591416,23.4849128,4220.4,4220.3,1.575]
[1754841591822,23.2310128,4220.4,4220.3,1.575]
[1754841593822,1.77399,4220.1,4220.0,1.575]
[1754841594020,24.30819579,4220.1,4220.0,1.575]
[1754841594221,24.71100859,4220.1,4220.0,1.575]
[1754841594621,24.45710859,4220.1,4220.0,1.575]
[1754841595029,23.98321859,4220.1,4220.0,2.04889]
[1754841597633,23.98321859,4220.1,4220.0,1.575]
[1754841598120,23.2290128,4220.1,4220.0,1.575]
[1754841600032,23.0801,4220.1,4220.0,1.575]
[1754841600533,22.54826229,4220.1,4219.2,2.12956945]
[1754841600924,0.2539,4220.0,4219.2,2.12956945]
[1754841601117,0.2814,4219.9,4219.8,0.3601]
[1754841601328,0.4612,4219.9,4219.8,0.3601]
[1754841601823,0.4612,4219.9,4219.2,2.12956945]
[1754841602023,0.4612,4219.9,4218.0,6.62973891]
[1754841602024,0.4612,4219.9,4218.0,2.3706]
[1754841602322,0.1798,4219.9,4218.0,2.3706]
[1754841602527,0.47395,4219.6,4219.4,0.6241]
[1754841603825,0.3997,4219.6,4219.4,0.6241]
[1754841604125,0.6626,4219.5,4219.4,0.6241]
[1754841604323,0.8424,4219.5,4219.4,0.6241]
[1754841604520,0.3997,4219.7,4219.4,0.6241]
[1754841604826,0.3997,4219.6,4219.4,0.6241]
[1754841605530,0.14926229,4219.9,4219.4,0.6241]
[1754841605731,0.14926229,4219.9,4218.9,1.18504]
[1754841605732,0.54086229,4219.9,4219.8,0.628]
[1754841605932,0.6565,4219.9,4219.8,0.628]
[1754841606430,0.14926229,4220.1,4219.8,0.628]
[1754841606620,0.47388,4220.2,4219.8,0.628]
[1754841606825,0.3916,4220.0,4219.8,0.628]
[1754841607124,0.60056229,4220.3,4220.2,0.628]
[1754841607523,0.4513,4220.3,4220.2,0.628]
[1754841607731,0.8429,4220.3,4220.2,0.628]
[1754841608226,0.62311229,4220.4,4218.9,3.31268707]
[1754841608227,0.41416229,4220.4,4220.3,0.445]
[1754841608529,0.6565,4220.4,4220.3,0.628]
[1754841608726,0.80576229,4220.4,4220.3,0.628]
[1754841608932,0.41416229,4220.4,4220.3,0.628]
[1754841609234,0.2649,4220.4,4220.3,0.628]
[1754841609732,0.8429,4220.4,4220.3,0.628]
[1754841610728,1.31675,4220.4,4220.3,0.628]
[1754841611330,0.8429,4220.4,4220.3,0.628]
[1754841611627,0.8429,4220.4,4220.3,1.10186]
[1754841612020,0.8429,4220.4,4220.3,0.628]
[1754841612427,0.8429,4220.4,4220.3,1.10186]
[1754841612632,0.8429,4220.4,4220.3,0.628]
[1754841614030,0.3916,4220.5,4219.1,3.31262707]
[1754841614332,0.6565,4219.9,4219.8,1.10191]
[1754841616036,0.8429,4219.9,4219.8,1.10191]
[1754841616333,0.8429,4219.9,4219.8,0.628]
[1754841616726,0.4513,4219.6,4219.5,0.84174]
[1754841616927,0.8429,4219.6,4219.5,1.10194]
[1754841617331,0.47395,4219.5,4219.3,0.47397]
[1754841617531,0.8429,4219.4,4219.3,0.84177]
[1754841618034,1.18478,4219.9,4218.6,1.18511]
[1754841618230,0.4513,4219.1,4219.0,1.10199]
[1754841618433,0.8429,4219.1,4219.0,1.10199]
[1754841620734,0.3916,4219.0,4218.1,2.12764707]
[1754841620938,0.8429,4218.5,4218.4,0.84186]
[1754841621239,0.8429,4218.5,4218.4,1.10206]
[1754841622733,0.2649,4218.5,4218.4,1.10206]
[1754841622933,0.8429,4218.5,4218.4,1.10206]
[1754841623938,0.2649,4218.5,4218.4,1.10206]
[1754841624139,0.73893,4218.8,4218.7,1.10204]
[1754841624340,0.8429,4218.8,4218.7,0.183]
[1754841624534,0.8429,4218.8,4218.7,0.3678]
[1754841624735,0.8429,4218.8,4218.7,0.628]
[1754841624936,0.2649,4218.8,4218.7,0.628]
[1754841625335,0.6565,4218.8,4218.7,0.628]
[1754841626334,0.8429,4218.8,4218.7,0.628]
[1754841629346,0.1864,4218.6,4218.5,0.47405]
[1754841629540,0.578,4218.4,4218.3,0.277]
[1754841629843,1.5791,4218.4,4218.3,0.277]
[1754841630141,1.5791,4218.4,4218.3,0.9034]
[1754841630343,1.5791,4218.4,4218.3,1.5501]
[1754841631136,1.3026,4218.4,4218.3,1.5501]
[1754841632134,1.3026,4218.4,4218.3,0.9034]
[1754841632135,1.5791,4218.4,4218.3,0.9034]
[1754841632343,1.5791,4218.4,4218.3,0.4618]
[1754841632644,1.5791,4218.4,4217.8,1.18533]
[1754841632645,1.5791,4218.2,4218.1,0.4741]
[1754841633541,1.5791,4218.2,4218.1,1.6377]
[1754841633737,1.5791,4218.2,4218.1,2.0242]
[1754841634740,1.5791,4218.2,4218.1,0.9359]
[1754841635043,0.14867787,4218.3,4218.0,0.47411]
[1754841635044,1.3026,4218.1,4218.0,0.47411]
[1754841635346,1.5791,4218.1,4218.0,0.47411]
[1754841635643,1.549,4218.0,4217.9,0.47412]
[1754841638245,1.549,4218.0,4217.9,0.73932]
[1754841638937,1.549,4218.0,4217.9,0.47412]
[1754841639246,1.2873,4218.0,4217.9,2.06152]
[1754841639447,1.549,4218.6,4218.5,0.47405]
[1754841639649,23.331,4218.6,4218.5,1.37365]
[1754841639842,1.43530249,4218.6,4218.5,2.06145]
[1754841640151,23.0693,4218.6,4218.5,2.06145]
[1754841640349,1.549,4219.1,4219.0,0.474]
[1754841640544,23.331,4219.1,4219.0,0.474]
[1754841640847,0.58194984,4219.1,4219.0,1.3736]
[1754841641050,1.2873,4219.1,4219.0,2.0614]
[1754841641341,23.0703,4219.1,4219.0,2.0614]
[1754841641539,0.14804984,4219.1,4219.0,2.0614]
[1754841641747,0.18551621,4219.7,4219.0,2.0614]
[1754841641748,21.783,4219.2,4219.0,1.1164]
[1754841641947,0.6701,4219.8,4219.7,0.2797]
[1754841642151,22.60125247,4219.8,4219.7,1.5874]
[1754841642451,22.95925247,4219.8,4219.7,1.5874]
[1754841642649,1.549,4219.7,4219.6,0.47393]
[1754841642852,1.43545247,4219.7,4219.6,1.78963]
[1754841643044,0.47385,4220.4,4219.6,1.11633]
[1754841643045,21.93115247,4219.8,4219.6,1.11633]
[1754841643347,21.783,4219.8,4219.7,1.5874]
[1754841643545,21.93015774,4219.8,4219.7,1.5874]
[1754841643738,23.47915774,4219.8,4219.6,0.47393]
[1754841643937,23.47915774,4219.8,4219.3,0.47396]
[1754841643938,0.185,4219.4,4219.3,0.47396]
[1754841644142,0.73314,4219.6,4218.7,1.38164]
[1754841644143,0.6189,4218.8,4218.7,1.38164]
[1754841644443,1.0281,4218.8,4218.7,2.06144]
[1754841644642,0.2609,4218.8,4218.7,2.06144]
[1754841644837,0.6172,4219.7,4219.6,0.47394]
[1754841645043,1.1398,4219.7,4219.6,1.65324]
[1754841645243,22.9208,4219.7,4219.6,2.06134]
[1754841645444,23.47719875,4219.7,4219.6,2.06134]
[1754841645651,23.47719875,4219.7,4219.6,1.65324]
[1754841645847,22.54709875,4219.7,4219.4,0.47395]
[1754841646051,1.549,4219.5,4219.4,1.65325]
[1754841646239,1.2873,4219.5,4219.4,2.06135]
[1754841646443,23.0683,4219.5,4219.4,2.06135]
[1754841646648,23.21549875,4219.5,4219.4,2.06135]
[1754841647445,23.47719875,4219.5,4219.4,2.06135]
[1754841647645,23.47719875,4219.5,4219.4,1.65325]
[1754841648453,23.47719875,4219.5,4219.4,0.47395]
[1754841648951,23.47719875,4219.5,4219.4,0.73915]
[1754841649749,1.549,4219.4,4219.3,0.47396]
[1754841649950,1.69619875,4219.4,4219.3,1.65326]
[1754841650151,1.69619875,4219.4,4219.3,2.06136]
[1754841650546,1.69619875,4219.4,4219.3,1.65326]
[1754841650751,23.328,4219.4,4219.3,1.10186]
[1754841650953,23.47519875,4219.4,4219.3,0.47396]
[1754841651649,23.94915875,4219.4,4219.1,0.47399]
[1754841651853,0.8806,4218.8,4218.7,0.3627]
[1754841652054,0.2609,4218.1,4218.0,1.43362]
[1754841652352,22.2129,4218.1,4218.0,2.06152]
[1754841652546,22.76929875,4218.1,4218.0,2.06152]
[1754841652947,22.36009875,4218.1,4218.0,2.06152]
[1754841653343,22.95429875,4218.1,4218.0,2.06152]
[1754841653952,22.18709875,4218.1,4218.0,2.06152]
[1754841654154,21.92619875,4218.1,4218.0,2.06152]
[1754841657355,22.18709875,4218.1,4218.0,2.06152]
[1754841657758,22.0399,4218.1,4218.0,2.06152]
[1754841658052,22.36039676,4218.1,4218.0,2.06152]
[1754841658263,22.76959676,4218.1,4218.0,2.06152]
[1754841658449,22.95459676,4218.1,4218.0,2.06152]
[1754841658757,23.21379676,4218.1,4218.0,2.06152]
[1754841659454,22.95459676,4218.1,4218.0,2.06152]
[1754841659856,22.59659676,4218.1,4218.0,2.06152]
[1754841660258,0.14749676,4218.1,4218.0,0.92212]
[1754841660452,1.2873,4218.1,4218.0,2.06152]
[1754841660756,1.69649676,4218.1,4218.0,2.06152]
[1754841662557,1.43479676,4218.1,4218.0,2.06152]
[1754841663247,22.8081,4218.1,4218.0,2.06152]
[1754841663453,22.95559676,4218.1,4218.0,2.06152]
[1754841664856,23.21479676,4218.1,4218.0,2.06152]
[1754841665172,23.47649676,4218.1,4218.0,0.47412]
[1754841665463,1.69649676,4218.1,4218.0,1.19082]
[1754841665657,23.329,4218.1,4218.0,2.02352]
[1754841665860,23.47649676,4218.1,4218.0,2.02352]
[1754841666262,1.69649676,4218.1,4218.0,2.02352]
[1754841666464,23.329,4218.1,4218.0,2.02352]
[1754841666664,23.47649676,4218.1,4218.0,2.02352]
[1754841666966,1.43479676,4218.1,4218.0,2.02352]
[1754841667265,22.0463,4218.4,4218.3,2.02348]
[1754841667463,0.14749676,4218.4,4218.3,2.02348]
[1754841667659,21.78,4218.4,4218.3,2.02348]
[1754841667869,21.92749676,4218.4,4218.3,2.02348]
[1754841668558,23.24406579,4218.4,4218.3,2.02348]
[1754841668759,23.52046579,4218.4,4218.3,2.02348]
[1754841669260,1.74046579,4218.4,4218.3,0.4436]
[1754841669462,1.5929,4218.3,4217.9,0.3959]
[1754841669659,1.5929,4218.1,4218.0,1.35921]
[1754841669864,1.5929,4218.1,4218.0,1.281]
[1754841670062,0.6194,4218.1,4217.6,0.3959]
[1754841670261,1.3124,4217.7,4217.6,1.0079]
[1754841670462,23.3729,4217.7,4217.6,0.3483]
[1754841670666,23.52048631,4217.7,4217.6,0.6167]
[1754841671267,23.52048631,4217.7,4217.6,0.4436]
[1754841671870,22.96358631,4217.7,4217.6,2.02356]
[1754841672670,23.24408631,4217.7,4217.6,2.02356]
[1754841672871,0.41388631,4217.7,4217.6,2.02356]
[1754841673170,1.51011,4218.1,4218.0,1.5494]
[1754841673473,23.56961,4218.1,4218.0,1.5494]
[1754841673663,23.71719631,4218.1,4218.0,1.5494]
[1754841674370,2.21459631,4218.1,4218.0,0.6167]
[1754841674670,23.84701,4218.1,4218.0,0.2684]
[1754841674872,23.99459631,4218.1,4218.0,0.8898]
[1754841675167,23.99459631,4218.1,4218.0,1.1535]
[1754841676073,23.99459631,4218.1,4218.0,1.5494]
[1754841678074,0.74045,4217.7,4217.6,0.3959]
[1754841678269,23.57065,4217.7,4217.6,1.5494]
[1754841678466,23.24408631,4217.7,4217.6,1.5494]
[1754841681073,22.96358631,4217.7,4217.6,1.5494]
[1754841681274,22.54698631,4217.7,4217.6,1.5494]
[1754841681968,22.96358631,4217.7,4217.6,1.5494]
[1754841682368,23.24408631,4217.7,4217.6,1.1535]
[1754841682674,1.46408631,4217.7,4217.6,1.5494]
[1754841682870,22.2156,4217.7,4217.6,1.5494]
[1754841683273,22.3637074,4217.7,4217.6,1.5494]
[1754841683667,21.9271074,4217.7,4217.6,1.5494]
[1754841686076,22.1934074,4217.7,4217.6,1.5494]
[1754841686374,23.0733074,4217.7,4217.6,1.5494]
[1754841686764,22.1934074,4217.7,4217.6,0.2684]
[1754841687076,21.9271074,4217.7,4217.6,1.5494]
[1754841688378,21.9261074,4217.7,4217.6,1.5494]
[1754841689477,22.6090074,4217.7,4217.6,1.5494]
[1754841690583,0.8310074,4217.7,4217.6,1.5494]
[1754841690783,22.4599,4217.7,4217.6,1.5494]
[1754841691082,22.6080074,4217.7,4217.6,1.5494]
[1754841691277,21.9251074,4217.7,4217.6,1.5494]
[1754841692176,22.6080074,4217.7,4217.6,1.5494]
[1754841692777,22.7783074,4217.7,4217.6,1.5494]
[1754841692982,1.0013074,4217.7,4217.6,1.5494]
[1754841693185,22.6302,4217.7,4217.6,1.5494]
[1754841693371,22.7783074,4217.7,4217.6,1.5494]
[1754841694783,22.9611074,4217.7,4217.6,1.5494]
[1754841694981,23.4352674,4217.7,4217.5,0.47416]
[1754841695180,1.7410074,4217.6,4217.5,0.47416]
[1754841695387,1.08637,4217.5,4217.4,1.67155344]
[1754841695586,2.04187,4217.5,4217.4,1.01957344]
[1754841695787,1.5677,4217.5,4217.4,1.19737344]
[1754841695987,1.5677,4217.5,4217.4,2.60937344]
[1754841696689,1.5677,4217.5,4217.4,2.19627344]
[1754841697286,23.3427,4217.5,4217.4,1.29387344]
[1754841697483,23.2192074,4217.5,4217.4,2.60937344]
[1754841697681,22.9512074,4217.5,4217.4,2.60937344]
[1754841697881,1.1762074,4217.5,4217.4,2.60937344]
[1754841698082,22.8031,4217.5,4217.4,2.60937344]
[1754841698282,23.2192074,4217.5,4217.4,2.60937344]
[1754841698489,1.4442074,4217.5,4217.4,2.60937344]
[1754841698691,23.0711,4217.5,4217.4,2.60937344]
[1754841698890,23.2192074,4217.5,4217.4,2.60937344]
[1754841699191,22.9512074,4217.5,4217.4,2.60937344]
[1754841699384,22.9502074,4217.5,4217.4,2.60937344]
[1754841699590,23.2182074,4217.5,4217.4,2.60937344]
[1754841699987,23.4898074,4217.5,4217.4,2.19627344]
[1754841700792,23.2182074,4217.5,4217.4,2.60937344]
[1754841701087,0.1481074,4217.5,4217.4,2.60937344]
[1754841701290,21.774,4217.5,4217.4,2.60937344]
[1754841701589,0.1481074,4217.5,4217.4,2.60937344]
[1754841701890,1.77023,4217.9,4217.8,1.5898]
[1754841702189,23.81483,4217.9,4217.8,1.5898]
[1754841702379,24.54040205,4217.9,4217.8,1.5898]
[1754841705589,2.76740205,4217.9,4217.8,1.1767]
[1754841705789,23.81383,4217.9,4217.8,1.1767]
[1754841705988,24.53940205,4217.9,4217.8,1.1767]
[1754841706894,24.53940205,4217.9,4217.8,1.5898]
[1754841707588,23.85190205,4217.9,4217.7,0.47414]
[1754841707889,1.18511,4218.7,4217.7,1.10244]
[1754841707890,22.1749074,4217.8,4217.7,1.10244]
[1754841708283,22.1749074,4217.8,4217.7,2.06394]
[1754841708495,0.4039074,4217.8,4217.7,2.06394]